{"text_format":"3","workbook":"xlsx","n_sheets":3,"sheets":["Δεδομένα υποψήφιου πελάτη","Προβλεπόμενες πωλήσεις ","Μηνιαία σταθμισμένη πρόβλεψη"],"not_rendered":{"charts":1,"defined_names":10},"read":"whole","date_system":"1900"}

{"sheet":"Δεδομένα υποψήφιου πελάτη","index":0,"n_rows":9,"n_cols":10,"rows_kept":9,"merged":[[3,1,3,8]]}
[null,"Επωνυμία εταιρείας"]
[null,"Λεπτομερής παρακολούθηση υποψήφιων πελατών"]
[null,{"$f":"TODAY()","v":"2018-07-24"}]
[null,{"$f":"Επωνυμία_Εταιρείας","v":"Επωνυμία εταιρείας"},{"$nulls":7},"ΕΜΠΙΣΤΕΥΤΙΚΌ"]
[null,"Όνομα υποψήφιου πελάτη","Στοιχεία επικοινωνίας υποψήφιου πελάτη","Προέλευση υποψήφιου πελάτη","Περιοχή υποψήφιου πελάτη","Τύπος υποψήφιου πελάτη","Πιθανή ευκαιρία","Πιθανότητα \nπώλησης","Κλείσιμο πρόβλεψης","Σταθμισμένη πρόβλεψη"]
[null,"A. Datum Corporation",{"$nulls":3},"Στρατηγικός",{"v":300000,"d":"300,000.00 €"},{"v":0.9,"d":"90%"},"Ιανουάριος",{"$f":"IFERROR(IF(ΔεδομέναΥποψήφιουΠελάτη[Πιθανότητα \nπώλησης]<>\"\",ΔεδομέναΥποψήφιουΠελάτη[Πιθανότητα \nπώλησης]*ΔεδομέναΥποψήφιουΠελάτη[Πιθανή ευκαιρία],\"\"),\"\")","v":{"v":270000,"d":"270,000.00 €"}}]
[null,"Adventure Works",{"$nulls":3},"Στρατηγικός",{"v":200000,"d":"200,000.00 €"},{"v":0.1,"d":"10%"},"Φεβρουάριος",{"$f":"IFERROR(IF(ΔεδομέναΥποψήφιουΠελάτη[Πιθανότητα \nπώλησης]<>\"\",ΔεδομέναΥποψήφιουΠελάτη[Πιθανότητα \nπώλησης]*ΔεδομέναΥποψήφιουΠελάτη[Πιθανή ευκαιρία],\"\"),\"\")","v":{"v":20000,"d":"20,000.00 €"}}]
[null,"Alpine Ski House",{"$nulls":3},"Τακτικός",{"v":100000,"d":"100,000.00 €"},{"v":0.2,"d":"20%"},"Μάρτιος",{"$f":"IFERROR(IF(ΔεδομέναΥποψήφιουΠελάτη[Πιθανότητα \nπώλησης]<>\"\",ΔεδομέναΥποψήφιουΠελάτη[Πιθανότητα \nπώλησης]*ΔεδομέναΥποψήφιουΠελάτη[Πιθανή ευκαιρία],\"\"),\"\")","v":{"v":20000,"d":"20,000.00 €"}}]
[null,"Σύνολο",{"$nulls":4},{"$f":"SUBTOTAL(109,ΔεδομέναΥποψήφιουΠελάτη[Πιθανή ευκαιρία])","v":{"v":600000,"d":"600,000.00 €"}},null,null,{"$f":"SUBTOTAL(109,ΔεδομέναΥποψήφιουΠελάτη[Σταθμισμένη πρόβλεψη])","v":{"v":310000,"d":"310,000.00 €"}}]

{"sheet":"Προβλεπόμενες πωλήσεις ","index":1,"n_rows":21,"n_cols":14,"rows_kept":21,"merged":[[3,1,3,11],[3,12,3,13]]}
[null,{"$f":"Επωνυμία_Εταιρείας","v":"Επωνυμία εταιρείας"}]
[null,"Προβλεπόμενες πωλήσεις"]
[null,{"$f":"ΗμερομηνίαΠαρακολούθησης","v":"2018-07-24"}]
[null,{"$f":"Επωνυμία_Εταιρείας","v":"Επωνυμία εταιρείας"},{"$nulls":10},"ΕΜΠΙΣΤΕΥΤΙΚΌ"]
[null,"Όνομα υποψήφιου πελάτη","Πρόβλεψη Ιανουαρίου","Πρόβλεψη Φεβρουαρίου","Πρόβλεψη Μαρτίου","Πρόβλεψη Απριλίου","Πρόβλεψη Μαΐου","Πρόβλεψη Ιουνίου","Πρόβλεψη Ιούλιου","Πρόβλεψη Αυγούστου","Πρόβλεψη Σεπτεμβρίου","Πρόβλεψη Οκτωβρίου","Πρόβλεψη Νοεμβρίου","Πρόβλεψη Δεκεμβρίου"]
[null,{"$f":"IFERROR(IF(AND(ΔεδομέναΥποψήφιουΠελάτη[Όνομα υποψήφιου πελάτη] <> \"\", ROW(ΠροβλεπόμενεςΠωλήσεις[Όνομα υποψήφιου πελάτη])<>ΤελευταίαΚαταχώρηση),ΔεδομέναΥποψήφιουΠελάτη[Όνομα υποψήφιου πελάτη], \"\"),\"\")","v":"A. Datum Corporation"},{"$f":"IFERROR(IF(ΔεδομέναΥποψήφιουΠελάτη[Κλείσιμο πρόβλεψης] <>\"\",IF(ΔεδομέναΥποψήφιουΠελάτη[Κλείσιμο πρόβλεψης]= \"Ιανουάριος\",ΔεδομέναΥποψήφιουΠελάτη[Σταθμισμένη πρόβλεψη],0),\"\"),\"\")","v":{"v":270000,"d":"270,000 €"}},{"$f":"IFERROR(IF(ΔεδομέναΥποψήφιουΠελάτη[Κλείσιμο πρόβλεψης] <>\"\",IF(ΔεδομέναΥποψήφιουΠελάτη[Κλείσιμο πρόβλεψης] = \"Φεβρουάριος\",ΔεδομέναΥποψήφιουΠελάτη[Σταθμισμένη πρόβλεψη],0),\"\"),\"\")","v":{"v":0,"d":"0 €"}},{"$f":"IFERROR(IF(ΔεδομέναΥποψήφιουΠελάτη[Κλείσιμο πρόβλεψης] <>\"\",IF(ΔεδομέναΥποψήφιουΠελάτη[Κλείσιμο πρόβλεψης] = \"Μάρτιος\",ΔεδομέναΥποψήφιουΠελάτη[Σταθμισμένη πρόβλεψη],0),\"\"),\"\")","v":{"v":0,"d":"0 €"}},{"$f":"IFERROR(IF(ΔεδομέναΥποψήφιουΠελάτη[Κλείσιμο πρόβλεψης] <>\"\",IF(ΔεδομέναΥποψήφιουΠελάτη[Κλείσιμο πρόβλεψης] = \"Απρίλιος\",ΔεδομέναΥποψήφιουΠελάτη[Σταθμισμένη πρόβλεψη],0),\"\"),\"\")","v":{"v":0,"d":"0 €"}},{"$f":"IFERROR(IF(ΔεδομέναΥποψήφιουΠελάτη[Κλείσιμο πρόβλεψης] <>\"\",IF(ΔεδομέναΥποψήφιουΠελάτη[Κλείσιμο πρόβλεψης] = \"Μάιος\",ΔεδομέναΥποψήφιουΠελάτη[Σταθμισμένη πρόβλεψη],0),\"\"),\"\")","v":{"v":0,"d":"0 €"}},{"$f":"IFERROR(IF(ΔεδομέναΥποψήφιουΠελάτη[Κλείσιμο πρόβλεψης] <>\"\",IF(ΔεδομέναΥποψήφιουΠελάτη[Κλείσιμο πρόβλεψης] = \"Ιούνιος\",ΔεδομέναΥποψήφιουΠελάτη[Σταθμισμένη πρόβλεψη],0),\"\"),\"\")","v":{"v":0,"d":"0 €"}},{"$f":"IFERROR(IF(ΔεδομέναΥποψήφιουΠελάτη[Κλείσιμο πρόβλεψης] <>\"\",IF(ΔεδομέναΥποψήφιουΠελάτη[Κλείσιμο πρόβλεψης] = \"Ιούλιος\",ΔεδομέναΥποψήφιουΠελάτη[Σταθμισμένη πρόβλεψη],0),\"\"),\"\")","v":{"v":0,"d":"0 €"}},{"$f":"IFERROR(IF(ΔεδομέναΥποψήφιουΠελάτη[Κλείσιμο πρόβλεψης] <>\"\",IF(ΔεδομέναΥποψήφιουΠελάτη[Κλείσιμο πρόβλεψης] = \"Αύγουστος\",ΔεδομέναΥποψήφιουΠελάτη[Σταθμισμένη πρόβλεψη],0),\"\"),\"\")","v":{"v":0,"d":"0 €"}},{"$f":"IFERROR(IF(ΔεδομέναΥποψήφιουΠελάτη[Κλείσιμο πρόβλεψης] <>\"\",IF(ΔεδομέναΥποψήφιουΠελάτη[Κλείσιμο πρόβλεψης] = \"Σεπτέμβριος\",ΔεδομέναΥποψήφιουΠελάτη[Σταθμισμένη πρόβλεψη],0),\"\"),\"\")","v":{"v":0,"d":"0 €"}},{"$f":"IFERROR(IF(ΔεδομέναΥποψήφιουΠελάτη[Κλείσιμο πρόβλεψης] <>\"\",IF(ΔεδομέναΥποψήφιουΠελάτη[Κλείσιμο πρόβλεψης] = \"Οκτώβριος\",ΔεδομέναΥποψήφιουΠελάτη[Σταθμισμένη πρόβλεψη],0),\"\"),\"\")","v":{"v":0,"d":"0 €"}},{"$f":"IFERROR(IF(ΔεδομέναΥποψήφιουΠελάτη[Κλείσιμο πρόβλεψης] <>\"\",IF(ΔεδομέναΥποψήφιουΠελάτη[Κλείσιμο πρόβλεψης] = \"Νοέμβριος\",ΔεδομέναΥποψήφιουΠελάτη[Σταθμισμένη πρόβλεψη],0),\"\"),\"\")","v":{"v":0,"d":"0 €"}},{"$f":"IFERROR(IF(ΔεδομέναΥποψήφιουΠελάτη[Κλείσιμο πρόβλεψης] <>\"\",IF(ΔεδομέναΥποψήφιουΠελάτη[Κλείσιμο πρόβλεψης] = \"Δεκέμβριος\",ΔεδομέναΥποψήφιουΠελάτη[Σταθμισμένη πρόβλεψη],0),\"\"),\"\")","v":{"v":0,"d":"0 €"}}]
[null,{"$f":"IFERROR(IF(AND(ΔεδομέναΥποψήφιουΠελάτη[Όνομα υποψήφιου πελάτη] <> \"\", ROW(ΠροβλεπόμενεςΠωλήσεις[Όνομα υποψήφιου πελάτη])<>ΤελευταίαΚαταχώρηση),ΔεδομέναΥποψήφιουΠελάτη[Όνομα υποψήφιου πελάτη], \"\"),\"\")","v":"Adventure Works"},{"$f":"IFERROR(IF(ΔεδομέναΥποψήφιουΠελάτη[Κλείσιμο πρόβλεψης] <>\"\",IF(ΔεδομέναΥποψήφιουΠελάτη[Κλείσιμο πρόβλεψης]= \"Ιανουάριος\",ΔεδομέναΥποψήφιουΠελάτη[Σταθμισμένη πρόβλεψη],0),\"\"),\"\")","v":{"v":0,"d":"0 €"}},{"$f":"IFERROR(IF(ΔεδομέναΥποψήφιουΠελάτη[Κλείσιμο πρόβλεψης] <>\"\",IF(ΔεδομέναΥποψήφιουΠελάτη[Κλείσιμο πρόβλεψης] = \"Φεβρουάριος\",ΔεδομέναΥποψήφιουΠελάτη[Σταθμισμένη πρόβλεψη],0),\"\"),\"\")","v":{"v":20000,"d":"20,000 €"}},{"$f":"IFERROR(IF(ΔεδομέναΥποψήφιουΠελάτη[Κλείσιμο πρόβλεψης] <>\"\",IF(ΔεδομέναΥποψήφιουΠελάτη[Κλείσιμο πρόβλεψης] = \"Μάρτιος\",ΔεδομέναΥποψήφιουΠελάτη[Σταθμισμένη πρόβλεψη],0),\"\"),\"\")","v":{"v":0,"d":"0 €"}},{"$f":"IFERROR(IF(ΔεδομέναΥποψήφιουΠελάτη[Κλείσιμο πρόβλεψης] <>\"\",IF(ΔεδομέναΥποψήφιουΠελάτη[Κλείσιμο πρόβλεψης] = \"Απρίλιος\",ΔεδομέναΥποψήφιουΠελάτη[Σταθμισμένη πρόβλεψη],0),\"\"),\"\")","v":{"v":0,"d":"0 €"}},{"$f":"IFERROR(IF(ΔεδομέναΥποψήφιουΠελάτη[Κλείσιμο πρόβλεψης] <>\"\",IF(ΔεδομέναΥποψήφιουΠελάτη[Κλείσιμο πρόβλεψης] = \"Μάιος\",ΔεδομέναΥποψήφιουΠελάτη[Σταθμισμένη πρόβλεψη],0),\"\"),\"\")","v":{"v":0,"d":"0 €"}},{"$f":"IFERROR(IF(ΔεδομέναΥποψήφιουΠελάτη[Κλείσιμο πρόβλεψης] <>\"\",IF(ΔεδομέναΥποψήφιουΠελάτη[Κλείσιμο πρόβλεψης] = \"Ιούνιος\",ΔεδομέναΥποψήφιουΠελάτη[Σταθμισμένη πρόβλεψη],0),\"\"),\"\")","v":{"v":0,"d":"0 €"}},{"$f":"IFERROR(IF(ΔεδομέναΥποψήφιουΠελάτη[Κλείσιμο πρόβλεψης] <>\"\",IF(ΔεδομέναΥποψήφιουΠελάτη[Κλείσιμο πρόβλεψης] = \"Ιούλιος\",ΔεδομέναΥποψήφιουΠελάτη[Σταθμισμένη πρόβλεψη],0),\"\"),\"\")","v":{"v":0,"d":"0 €"}},{"$f":"IFERROR(IF(ΔεδομέναΥποψήφιουΠελάτη[Κλείσιμο πρόβλεψης] <>\"\",IF(ΔεδομέναΥποψήφιουΠελάτη[Κλείσιμο πρόβλεψης] = \"Αύγουστος\",ΔεδομέναΥποψήφιουΠελάτη[Σταθμισμένη πρόβλεψη],0),\"\"),\"\")","v":{"v":0,"d":"0 €"}},{"$f":"IFERROR(IF(ΔεδομέναΥποψήφιουΠελάτη[Κλείσιμο πρόβλεψης] <>\"\",IF(ΔεδομέναΥποψήφιουΠελάτη[Κλείσιμο πρόβλεψης] = \"Σεπτέμβριος\",ΔεδομέναΥποψήφιουΠελάτη[Σταθμισμένη πρόβλεψη],0),\"\"),\"\")","v":{"v":0,"d":"0 €"}},{"$f":"IFERROR(IF(ΔεδομέναΥποψήφιουΠελάτη[Κλείσιμο πρόβλεψης] <>\"\",IF(ΔεδομέναΥποψήφιουΠελάτη[Κλείσιμο πρόβλεψης] = \"Οκτώβριος\",ΔεδομέναΥποψήφιουΠελάτη[Σταθμισμένη πρόβλεψη],0),\"\"),\"\")","v":{"v":0,"d":"0 €"}},{"$f":"IFERROR(IF(ΔεδομέναΥποψήφιουΠελάτη[Κλείσιμο πρόβλεψης] <>\"\",IF(ΔεδομέναΥποψήφιουΠελάτη[Κλείσιμο πρόβλεψης] = \"Νοέμβριος\",ΔεδομέναΥποψήφιουΠελάτη[Σταθμισμένη πρόβλεψη],0),\"\"),\"\")","v":{"v":0,"d":"0 €"}},{"$f":"IFERROR(IF(ΔεδομέναΥποψήφιουΠελάτη[Κλείσιμο πρόβλεψης] <>\"\",IF(ΔεδομέναΥποψήφιουΠελάτη[Κλείσιμο πρόβλεψης] = \"Δεκέμβριος\",ΔεδομέναΥποψήφιουΠελάτη[Σταθμισμένη πρόβλεψη],0),\"\"),\"\")","v":{"v":0,"d":"0 €"}}]
[null,{"$f":"IFERROR(IF(AND(ΔεδομέναΥποψήφιουΠελάτη[Όνομα υποψήφιου πελάτη] <> \"\", ROW(ΠροβλεπόμενεςΠωλήσεις[Όνομα υποψήφιου πελάτη])<>ΤελευταίαΚαταχώρηση),ΔεδομέναΥποψήφιουΠελάτη[Όνομα υποψήφιου πελάτη], \"\"),\"\")","v":"Alpine Ski House"},{"$f":"IFERROR(IF(ΔεδομέναΥποψήφιουΠελάτη[Κλείσιμο πρόβλεψης] <>\"\",IF(ΔεδομέναΥποψήφιουΠελάτη[Κλείσιμο πρόβλεψης]= \"Ιανουάριος\",ΔεδομέναΥποψήφιουΠελάτη[Σταθμισμένη πρόβλεψη],0),\"\"),\"\")","v":{"v":0,"d":"0 €"}},{"$f":"IFERROR(IF(ΔεδομέναΥποψήφιουΠελάτη[Κλείσιμο πρόβλεψης] <>\"\",IF(ΔεδομέναΥποψήφιουΠελάτη[Κλείσιμο πρόβλεψης] = \"Φεβρουάριος\",ΔεδομέναΥποψήφιουΠελάτη[Σταθμισμένη πρόβλεψη],0),\"\"),\"\")","v":{"v":0,"d":"0 €"}},{"$f":"IFERROR(IF(ΔεδομέναΥποψήφιουΠελάτη[Κλείσιμο πρόβλεψης] <>\"\",IF(ΔεδομέναΥποψήφιουΠελάτη[Κλείσιμο πρόβλεψης] = \"Μάρτιος\",ΔεδομέναΥποψήφιουΠελάτη[Σταθμισμένη πρόβλεψη],0),\"\"),\"\")","v":{"v":20000,"d":"20,000 €"}},{"$f":"IFERROR(IF(ΔεδομέναΥποψήφιουΠελάτη[Κλείσιμο πρόβλεψης] <>\"\",IF(ΔεδομέναΥποψήφιουΠελάτη[Κλείσιμο πρόβλεψης] = \"Απρίλιος\",ΔεδομέναΥποψήφιουΠελάτη[Σταθμισμένη πρόβλεψη],0),\"\"),\"\")","v":{"v":0,"d":"0 €"}},{"$f":"IFERROR(IF(ΔεδομέναΥποψήφιουΠελάτη[Κλείσιμο πρόβλεψης] <>\"\",IF(ΔεδομέναΥποψήφιουΠελάτη[Κλείσιμο πρόβλεψης] = \"Μάιος\",ΔεδομέναΥποψήφιουΠελάτη[Σταθμισμένη πρόβλεψη],0),\"\"),\"\")","v":{"v":0,"d":"0 €"}},{"$f":"IFERROR(IF(ΔεδομέναΥποψήφιουΠελάτη[Κλείσιμο πρόβλεψης] <>\"\",IF(ΔεδομέναΥποψήφιουΠελάτη[Κλείσιμο πρόβλεψης] = \"Ιούνιος\",ΔεδομέναΥποψήφιουΠελάτη[Σταθμισμένη πρόβλεψη],0),\"\"),\"\")","v":{"v":0,"d":"0 €"}},{"$f":"IFERROR(IF(ΔεδομέναΥποψήφιουΠελάτη[Κλείσιμο πρόβλεψης] <>\"\",IF(ΔεδομέναΥποψήφιουΠελάτη[Κλείσιμο πρόβλεψης] = \"Ιούλιος\",ΔεδομέναΥποψήφιουΠελάτη[Σταθμισμένη πρόβλεψη],0),\"\"),\"\")","v":{"v":0,"d":"0 €"}},{"$f":"IFERROR(IF(ΔεδομέναΥποψήφιουΠελάτη[Κλείσιμο πρόβλεψης] <>\"\",IF(ΔεδομέναΥποψήφιουΠελάτη[Κλείσιμο πρόβλεψης] = \"Αύγουστος\",ΔεδομέναΥποψήφιουΠελάτη[Σταθμισμένη πρόβλεψη],0),\"\"),\"\")","v":{"v":0,"d":"0 €"}},{"$f":"IFERROR(IF(ΔεδομέναΥποψήφιουΠελάτη[Κλείσιμο πρόβλεψης] <>\"\",IF(ΔεδομέναΥποψήφιουΠελάτη[Κλείσιμο πρόβλεψης] = \"Σεπτέμβριος\",ΔεδομέναΥποψήφιουΠελάτη[Σταθμισμένη πρόβλεψη],0),\"\"),\"\")","v":{"v":0,"d":"0 €"}},{"$f":"IFERROR(IF(ΔεδομέναΥποψήφιουΠελάτη[Κλείσιμο πρόβλεψης] <>\"\",IF(ΔεδομέναΥποψήφιουΠελάτη[Κλείσιμο πρόβλεψης] = \"Οκτώβριος\",ΔεδομέναΥποψήφιουΠελάτη[Σταθμισμένη πρόβλεψη],0),\"\"),\"\")","v":{"v":0,"d":"0 €"}},{"$f":"IFERROR(IF(ΔεδομέναΥποψήφιουΠελάτη[Κλείσιμο πρόβλεψης] <>\"\",IF(ΔεδομέναΥποψήφιουΠελάτη[Κλείσιμο πρόβλεψης] = \"Νοέμβριος\",ΔεδομέναΥποψήφιουΠελάτη[Σταθμισμένη πρόβλεψη],0),\"\"),\"\")","v":{"v":0,"d":"0 €"}},{"$f":"IFERROR(IF(ΔεδομέναΥποψήφιουΠελάτη[Κλείσιμο πρόβλεψης] <>\"\",IF(ΔεδομέναΥποψήφιουΠελάτη[Κλείσιμο πρόβλεψης] = \"Δεκέμβριος\",ΔεδομέναΥποψήφιουΠελάτη[Σταθμισμένη πρόβλεψη],0),\"\"),\"\")","v":{"v":0,"d":"0 €"}}]
[null,{"$f":"IFERROR(IF(AND(ΔεδομέναΥποψήφιουΠελάτη[Όνομα υποψήφιου πελάτη] <> \"\", ROW(ΠροβλεπόμενεςΠωλήσεις[Όνομα υποψήφιου πελάτη])<>ΤελευταίαΚαταχώρηση),ΔεδομέναΥποψήφιουΠελάτη[Όνομα υποψήφιου πελάτη], \"\"),\"\")","v":""},{"$f":"IFERROR(IF(ΔεδομέναΥποψήφιουΠελάτη[Κλείσιμο πρόβλεψης] <>\"\",IF(ΔεδομέναΥποψήφιουΠελάτη[Κλείσιμο πρόβλεψης]= \"Ιανουάριος\",ΔεδομέναΥποψήφιουΠελάτη[Σταθμισμένη πρόβλεψη],0),\"\"),\"\")","v":""},{"$f":"IFERROR(IF(ΔεδομέναΥποψήφιουΠελάτη[Κλείσιμο πρόβλεψης] <>\"\",IF(ΔεδομέναΥποψήφιουΠελάτη[Κλείσιμο πρόβλεψης] = \"Φεβρουάριος\",ΔεδομέναΥποψήφιουΠελάτη[Σταθμισμένη πρόβλεψη],0),\"\"),\"\")","v":""},{"$f":"IFERROR(IF(ΔεδομέναΥποψήφιουΠελάτη[Κλείσιμο πρόβλεψης] <>\"\",IF(ΔεδομέναΥποψήφιουΠελάτη[Κλείσιμο πρόβλεψης] = \"Μάρτιος\",ΔεδομέναΥποψήφιουΠελάτη[Σταθμισμένη πρόβλεψη],0),\"\"),\"\")","v":""},{"$f":"IFERROR(IF(ΔεδομέναΥποψήφιουΠελάτη[Κλείσιμο πρόβλεψης] <>\"\",IF(ΔεδομέναΥποψήφιουΠελάτη[Κλείσιμο πρόβλεψης] = \"Απρίλιος\",ΔεδομέναΥποψήφιουΠελάτη[Σταθμισμένη πρόβλεψη],0),\"\"),\"\")","v":""},{"$f":"IFERROR(IF(ΔεδομέναΥποψήφιουΠελάτη[Κλείσιμο πρόβλεψης] <>\"\",IF(ΔεδομέναΥποψήφιουΠελάτη[Κλείσιμο πρόβλεψης] = \"Μάιος\",ΔεδομέναΥποψήφιουΠελάτη[Σταθμισμένη πρόβλεψη],0),\"\"),\"\")","v":""},{"$f":"IFERROR(IF(ΔεδομέναΥποψήφιουΠελάτη[Κλείσιμο πρόβλεψης] <>\"\",IF(ΔεδομέναΥποψήφιουΠελάτη[Κλείσιμο πρόβλεψης] = \"Ιούνιος\",ΔεδομέναΥποψήφιουΠελάτη[Σταθμισμένη πρόβλεψη],0),\"\"),\"\")","v":""},{"$f":"IFERROR(IF(ΔεδομέναΥποψήφιουΠελάτη[Κλείσιμο πρόβλεψης] <>\"\",IF(ΔεδομέναΥποψήφιουΠελάτη[Κλείσιμο πρόβλεψης] = \"Ιούλιος\",ΔεδομέναΥποψήφιουΠελάτη[Σταθμισμένη πρόβλεψη],0),\"\"),\"\")","v":""},{"$f":"IFERROR(IF(ΔεδομέναΥποψήφιουΠελάτη[Κλείσιμο πρόβλεψης] <>\"\",IF(ΔεδομέναΥποψήφιουΠελάτη[Κλείσιμο πρόβλεψης] = \"Αύγουστος\",ΔεδομέναΥποψήφιουΠελάτη[Σταθμισμένη πρόβλεψη],0),\"\"),\"\")","v":""},{"$f":"IFERROR(IF(ΔεδομέναΥποψήφιουΠελάτη[Κλείσιμο πρόβλεψης] <>\"\",IF(ΔεδομέναΥποψήφιουΠελάτη[Κλείσιμο πρόβλεψης] = \"Σεπτέμβριος\",ΔεδομέναΥποψήφιουΠελάτη[Σταθμισμένη πρόβλεψη],0),\"\"),\"\")","v":""},{"$f":"IFERROR(IF(ΔεδομέναΥποψήφιουΠελάτη[Κλείσιμο πρόβλεψης] <>\"\",IF(ΔεδομέναΥποψήφιουΠελάτη[Κλείσιμο πρόβλεψης] = \"Οκτώβριος\",ΔεδομέναΥποψήφιουΠελάτη[Σταθμισμένη πρόβλεψη],0),\"\"),\"\")","v":""},{"$f":"IFERROR(IF(ΔεδομέναΥποψήφιουΠελάτη[Κλείσιμο πρόβλεψης] <>\"\",IF(ΔεδομέναΥποψήφιουΠελάτη[Κλείσιμο πρόβλεψης] = \"Νοέμβριος\",ΔεδομέναΥποψήφιουΠελάτη[Σταθμισμένη πρόβλεψη],0),\"\"),\"\")","v":""},{"$f":"IFERROR(IF(ΔεδομέναΥποψήφιουΠελάτη[Κλείσιμο πρόβλεψης] <>\"\",IF(ΔεδομέναΥποψήφιουΠελάτη[Κλείσιμο πρόβλεψης] = \"Δεκέμβριος\",ΔεδομέναΥποψήφιουΠελάτη[Σταθμισμένη πρόβλεψη],0),\"\"),\"\")","v":""}]
[null,{"$f":"IFERROR(IF(AND(ΔεδομέναΥποψήφιουΠελάτη[Όνομα υποψήφιου πελάτη] <> \"\", ROW(ΠροβλεπόμενεςΠωλήσεις[Όνομα υποψήφιου πελάτη])<>ΤελευταίαΚαταχώρηση),ΔεδομέναΥποψήφιουΠελάτη[Όνομα υποψήφιου πελάτη], \"\"),\"\")","v":""},{"$f":"IFERROR(IF(ΔεδομέναΥποψήφιουΠελάτη[Κλείσιμο πρόβλεψης] <>\"\",IF(ΔεδομέναΥποψήφιουΠελάτη[Κλείσιμο πρόβλεψης]= \"Ιανουάριος\",ΔεδομέναΥποψήφιουΠελάτη[Σταθμισμένη πρόβλεψη],0),\"\"),\"\")","v":""},{"$f":"IFERROR(IF(ΔεδομέναΥποψήφιουΠελάτη[Κλείσιμο πρόβλεψης] <>\"\",IF(ΔεδομέναΥποψήφιουΠελάτη[Κλείσιμο πρόβλεψης] = \"Φεβρουάριος\",ΔεδομέναΥποψήφιουΠελάτη[Σταθμισμένη πρόβλεψη],0),\"\"),\"\")","v":""},{"$f":"IFERROR(IF(ΔεδομέναΥποψήφιουΠελάτη[Κλείσιμο πρόβλεψης] <>\"\",IF(ΔεδομέναΥποψήφιουΠελάτη[Κλείσιμο πρόβλεψης] = \"Μάρτιος\",ΔεδομέναΥποψήφιουΠελάτη[Σταθμισμένη πρόβλεψη],0),\"\"),\"\")","v":""},{"$f":"IFERROR(IF(ΔεδομέναΥποψήφιουΠελάτη[Κλείσιμο πρόβλεψης] <>\"\",IF(ΔεδομέναΥποψήφιουΠελάτη[Κλείσιμο πρόβλεψης] = \"Απρίλιος\",ΔεδομέναΥποψήφιουΠελάτη[Σταθμισμένη πρόβλεψη],0),\"\"),\"\")","v":""},{"$f":"IFERROR(IF(ΔεδομέναΥποψήφιουΠελάτη[Κλείσιμο πρόβλεψης] <>\"\",IF(ΔεδομέναΥποψήφιουΠελάτη[Κλείσιμο πρόβλεψης] = \"Μάιος\",ΔεδομέναΥποψήφιουΠελάτη[Σταθμισμένη πρόβλεψη],0),\"\"),\"\")","v":""},{"$f":"IFERROR(IF(ΔεδομέναΥποψήφιουΠελάτη[Κλείσιμο πρόβλεψης] <>\"\",IF(ΔεδομέναΥποψήφιουΠελάτη[Κλείσιμο πρόβλεψης] = \"Ιούνιος\",ΔεδομέναΥποψήφιουΠελάτη[Σταθμισμένη πρόβλεψη],0),\"\"),\"\")","v":""},{"$f":"IFERROR(IF(ΔεδομέναΥποψήφιουΠελάτη[Κλείσιμο πρόβλεψης] <>\"\",IF(ΔεδομέναΥποψήφιουΠελάτη[Κλείσιμο πρόβλεψης] = \"Ιούλιος\",ΔεδομέναΥποψήφιουΠελάτη[Σταθμισμένη πρόβλεψη],0),\"\"),\"\")","v":""},{"$f":"IFERROR(IF(ΔεδομέναΥποψήφιουΠελάτη[Κλείσιμο πρόβλεψης] <>\"\",IF(ΔεδομέναΥποψήφιουΠελάτη[Κλείσιμο πρόβλεψης] = \"Αύγουστος\",ΔεδομέναΥποψήφιουΠελάτη[Σταθμισμένη πρόβλεψη],0),\"\"),\"\")","v":""},{"$f":"IFERROR(IF(ΔεδομέναΥποψήφιουΠελάτη[Κλείσιμο πρόβλεψης] <>\"\",IF(ΔεδομέναΥποψήφιουΠελάτη[Κλείσιμο πρόβλεψης] = \"Σεπτέμβριος\",ΔεδομέναΥποψήφιουΠελάτη[Σταθμισμένη πρόβλεψη],0),\"\"),\"\")","v":""},{"$f":"IFERROR(IF(ΔεδομέναΥποψήφιουΠελάτη[Κλείσιμο πρόβλεψης] <>\"\",IF(ΔεδομέναΥποψήφιουΠελάτη[Κλείσιμο πρόβλεψης] = \"Οκτώβριος\",ΔεδομέναΥποψήφιουΠελάτη[Σταθμισμένη πρόβλεψη],0),\"\"),\"\")","v":""},{"$f":"IFERROR(IF(ΔεδομέναΥποψήφιουΠελάτη[Κλείσιμο πρόβλεψης] <>\"\",IF(ΔεδομέναΥποψήφιουΠελάτη[Κλείσιμο πρόβλεψης] = \"Νοέμβριος\",ΔεδομέναΥποψήφιουΠελάτη[Σταθμισμένη πρόβλεψη],0),\"\"),\"\")","v":""},{"$f":"IFERROR(IF(ΔεδομέναΥποψήφιουΠελάτη[Κλείσιμο πρόβλεψης] <>\"\",IF(ΔεδομέναΥποψήφιουΠελάτη[Κλείσιμο πρόβλεψης] = \"Δεκέμβριος\",ΔεδομέναΥποψήφιουΠελάτη[Σταθμισμένη πρόβλεψη],0),\"\"),\"\")","v":""}]
[null,{"$f":"IFERROR(IF(AND(ΔεδομέναΥποψήφιουΠελάτη[Όνομα υποψήφιου πελάτη] <> \"\", ROW(ΠροβλεπόμενεςΠωλήσεις[Όνομα υποψήφιου πελάτη])<>ΤελευταίαΚαταχώρηση),ΔεδομέναΥποψήφιουΠελάτη[Όνομα υποψήφιου πελάτη], \"\"),\"\")","v":""},{"$f":"IFERROR(IF(ΔεδομέναΥποψήφιουΠελάτη[Κλείσιμο πρόβλεψης] <>\"\",IF(ΔεδομέναΥποψήφιουΠελάτη[Κλείσιμο πρόβλεψης]= \"Ιανουάριος\",ΔεδομέναΥποψήφιουΠελάτη[Σταθμισμένη πρόβλεψη],0),\"\"),\"\")","v":""},{"$f":"IFERROR(IF(ΔεδομέναΥποψήφιουΠελάτη[Κλείσιμο πρόβλεψης] <>\"\",IF(ΔεδομέναΥποψήφιουΠελάτη[Κλείσιμο πρόβλεψης] = \"Φεβρουάριος\",ΔεδομέναΥποψήφιουΠελάτη[Σταθμισμένη πρόβλεψη],0),\"\"),\"\")","v":""},{"$f":"IFERROR(IF(ΔεδομέναΥποψήφιουΠελάτη[Κλείσιμο πρόβλεψης] <>\"\",IF(ΔεδομέναΥποψήφιουΠελάτη[Κλείσιμο πρόβλεψης] = \"Μάρτιος\",ΔεδομέναΥποψήφιουΠελάτη[Σταθμισμένη πρόβλεψη],0),\"\"),\"\")","v":""},{"$f":"IFERROR(IF(ΔεδομέναΥποψήφιουΠελάτη[Κλείσιμο πρόβλεψης] <>\"\",IF(ΔεδομέναΥποψήφιουΠελάτη[Κλείσιμο πρόβλεψης] = \"Απρίλιος\",ΔεδομέναΥποψήφιουΠελάτη[Σταθμισμένη πρόβλεψη],0),\"\"),\"\")","v":""},{"$f":"IFERROR(IF(ΔεδομέναΥποψήφιουΠελάτη[Κλείσιμο πρόβλεψης] <>\"\",IF(ΔεδομέναΥποψήφιουΠελάτη[Κλείσιμο πρόβλεψης] = \"Μάιος\",ΔεδομέναΥποψήφιουΠελάτη[Σταθμισμένη πρόβλεψη],0),\"\"),\"\")","v":""},{"$f":"IFERROR(IF(ΔεδομέναΥποψήφιουΠελάτη[Κλείσιμο πρόβλεψης] <>\"\",IF(ΔεδομέναΥποψήφιουΠελάτη[Κλείσιμο πρόβλεψης] = \"Ιούνιος\",ΔεδομέναΥποψήφιουΠελάτη[Σταθμισμένη πρόβλεψη],0),\"\"),\"\")","v":""},{"$f":"IFERROR(IF(ΔεδομέναΥποψήφιουΠελάτη[Κλείσιμο πρόβλεψης] <>\"\",IF(ΔεδομέναΥποψήφιουΠελάτη[Κλείσιμο πρόβλεψης] = \"Ιούλιος\",ΔεδομέναΥποψήφιουΠελάτη[Σταθμισμένη πρόβλεψη],0),\"\"),\"\")","v":""},{"$f":"IFERROR(IF(ΔεδομέναΥποψήφιουΠελάτη[Κλείσιμο πρόβλεψης] <>\"\",IF(ΔεδομέναΥποψήφιουΠελάτη[Κλείσιμο πρόβλεψης] = \"Αύγουστος\",ΔεδομέναΥποψήφιουΠελάτη[Σταθμισμένη πρόβλεψη],0),\"\"),\"\")","v":""},{"$f":"IFERROR(IF(ΔεδομέναΥποψήφιουΠελάτη[Κλείσιμο πρόβλεψης] <>\"\",IF(ΔεδομέναΥποψήφιουΠελάτη[Κλείσιμο πρόβλεψης] = \"Σεπτέμβριος\",ΔεδομέναΥποψήφιουΠελάτη[Σταθμισμένη πρόβλεψη],0),\"\"),\"\")","v":""},{"$f":"IFERROR(IF(ΔεδομέναΥποψήφιουΠελάτη[Κλείσιμο πρόβλεψης] <>\"\",IF(ΔεδομέναΥποψήφιουΠελάτη[Κλείσιμο πρόβλεψης] = \"Οκτώβριος\",ΔεδομέναΥποψήφιουΠελάτη[Σταθμισμένη πρόβλεψη],0),\"\"),\"\")","v":""},{"$f":"IFERROR(IF(ΔεδομέναΥποψήφιουΠελάτη[Κλείσιμο πρόβλεψης] <>\"\",IF(ΔεδομέναΥποψήφιουΠελάτη[Κλείσιμο πρόβλεψης] = \"Νοέμβριος\",ΔεδομέναΥποψήφιουΠελάτη[Σταθμισμένη πρόβλεψη],0),\"\"),\"\")","v":""},{"$f":"IFERROR(IF(ΔεδομέναΥποψήφιουΠελάτη[Κλείσιμο πρόβλεψης] <>\"\",IF(ΔεδομέναΥποψήφιουΠελάτη[Κλείσιμο πρόβλεψης] = \"Δεκέμβριος\",ΔεδομέναΥποψήφιουΠελάτη[Σταθμισμένη πρόβλεψη],0),\"\"),\"\")","v":""}]
[null,{"$f":"IFERROR(IF(AND(ΔεδομέναΥποψήφιουΠελάτη[Όνομα υποψήφιου πελάτη] <> \"\", ROW(ΠροβλεπόμενεςΠωλήσεις[Όνομα υποψήφιου πελάτη])<>ΤελευταίαΚαταχώρηση),ΔεδομέναΥποψήφιουΠελάτη[Όνομα υποψήφιου πελάτη], \"\"),\"\")","v":""},{"$f":"IFERROR(IF(ΔεδομέναΥποψήφιουΠελάτη[Κλείσιμο πρόβλεψης] <>\"\",IF(ΔεδομέναΥποψήφιουΠελάτη[Κλείσιμο πρόβλεψης]= \"Ιανουάριος\",ΔεδομέναΥποψήφιουΠελάτη[Σταθμισμένη πρόβλεψη],0),\"\"),\"\")","v":""},{"$f":"IFERROR(IF(ΔεδομέναΥποψήφιουΠελάτη[Κλείσιμο πρόβλεψης] <>\"\",IF(ΔεδομέναΥποψήφιουΠελάτη[Κλείσιμο πρόβλεψης] = \"Φεβρουάριος\",ΔεδομέναΥποψήφιουΠελάτη[Σταθμισμένη πρόβλεψη],0),\"\"),\"\")","v":""},{"$f":"IFERROR(IF(ΔεδομέναΥποψήφιουΠελάτη[Κλείσιμο πρόβλεψης] <>\"\",IF(ΔεδομέναΥποψήφιουΠελάτη[Κλείσιμο πρόβλεψης] = \"Μάρτιος\",ΔεδομέναΥποψήφιουΠελάτη[Σταθμισμένη πρόβλεψη],0),\"\"),\"\")","v":""},{"$f":"IFERROR(IF(ΔεδομέναΥποψήφιουΠελάτη[Κλείσιμο πρόβλεψης] <>\"\",IF(ΔεδομέναΥποψήφιουΠελάτη[Κλείσιμο πρόβλεψης] = \"Απρίλιος\",ΔεδομέναΥποψήφιουΠελάτη[Σταθμισμένη πρόβλεψη],0),\"\"),\"\")","v":""},{"$f":"IFERROR(IF(ΔεδομέναΥποψήφιουΠελάτη[Κλείσιμο πρόβλεψης] <>\"\",IF(ΔεδομέναΥποψήφιουΠελάτη[Κλείσιμο πρόβλεψης] = \"Μάιος\",ΔεδομέναΥποψήφιουΠελάτη[Σταθμισμένη πρόβλεψη],0),\"\"),\"\")","v":""},{"$f":"IFERROR(IF(ΔεδομέναΥποψήφιουΠελάτη[Κλείσιμο πρόβλεψης] <>\"\",IF(ΔεδομέναΥποψήφιουΠελάτη[Κλείσιμο πρόβλεψης] = \"Ιούνιος\",ΔεδομέναΥποψήφιουΠελάτη[Σταθμισμένη πρόβλεψη],0),\"\"),\"\")","v":""},{"$f":"IFERROR(IF(ΔεδομέναΥποψήφιουΠελάτη[Κλείσιμο πρόβλεψης] <>\"\",IF(ΔεδομέναΥποψήφιουΠελάτη[Κλείσιμο πρόβλεψης] = \"Ιούλιος\",ΔεδομέναΥποψήφιουΠελάτη[Σταθμισμένη πρόβλεψη],0),\"\"),\"\")","v":""},{"$f":"IFERROR(IF(ΔεδομέναΥποψήφιουΠελάτη[Κλείσιμο πρόβλεψης] <>\"\",IF(ΔεδομέναΥποψήφιουΠελάτη[Κλείσιμο πρόβλεψης] = \"Αύγουστος\",ΔεδομέναΥποψήφιουΠελάτη[Σταθμισμένη πρόβλεψη],0),\"\"),\"\")","v":""},{"$f":"IFERROR(IF(ΔεδομέναΥποψήφιουΠελάτη[Κλείσιμο πρόβλεψης] <>\"\",IF(ΔεδομέναΥποψήφιουΠελάτη[Κλείσιμο πρόβλεψης] = \"Σεπτέμβριος\",ΔεδομέναΥποψήφιουΠελάτη[Σταθμισμένη πρόβλεψη],0),\"\"),\"\")","v":""},{"$f":"IFERROR(IF(ΔεδομέναΥποψήφιουΠελάτη[Κλείσιμο πρόβλεψης] <>\"\",IF(ΔεδομέναΥποψήφιουΠελάτη[Κλείσιμο πρόβλεψης] = \"Οκτώβριος\",ΔεδομέναΥποψήφιουΠελάτη[Σταθμισμένη πρόβλεψη],0),\"\"),\"\")","v":""},{"$f":"IFERROR(IF(ΔεδομέναΥποψήφιουΠελάτη[Κλείσιμο πρόβλεψης] <>\"\",IF(ΔεδομέναΥποψήφιουΠελάτη[Κλείσιμο πρόβλεψης] = \"Νοέμβριος\",ΔεδομέναΥποψήφιουΠελάτη[Σταθμισμένη πρόβλεψη],0),\"\"),\"\")","v":""},{"$f":"IFERROR(IF(ΔεδομέναΥποψήφιουΠελάτη[Κλείσιμο πρόβλεψης] <>\"\",IF(ΔεδομέναΥποψήφιουΠελάτη[Κλείσιμο πρόβλεψης] = \"Δεκέμβριος\",ΔεδομέναΥποψήφιουΠελάτη[Σταθμισμένη πρόβλεψη],0),\"\"),\"\")","v":""}]
[null,{"$f":"IFERROR(IF(AND(ΔεδομέναΥποψήφιουΠελάτη[Όνομα υποψήφιου πελάτη] <> \"\", ROW(ΠροβλεπόμενεςΠωλήσεις[Όνομα υποψήφιου πελάτη])<>ΤελευταίαΚαταχώρηση),ΔεδομέναΥποψήφιουΠελάτη[Όνομα υποψήφιου πελάτη], \"\"),\"\")","v":""},{"$f":"IFERROR(IF(ΔεδομέναΥποψήφιουΠελάτη[Κλείσιμο πρόβλεψης] <>\"\",IF(ΔεδομέναΥποψήφιουΠελάτη[Κλείσιμο πρόβλεψης]= \"Ιανουάριος\",ΔεδομέναΥποψήφιουΠελάτη[Σταθμισμένη πρόβλεψη],0),\"\"),\"\")","v":""},{"$f":"IFERROR(IF(ΔεδομέναΥποψήφιουΠελάτη[Κλείσιμο πρόβλεψης] <>\"\",IF(ΔεδομέναΥποψήφιουΠελάτη[Κλείσιμο πρόβλεψης] = \"Φεβρουάριος\",ΔεδομέναΥποψήφιουΠελάτη[Σταθμισμένη πρόβλεψη],0),\"\"),\"\")","v":""},{"$f":"IFERROR(IF(ΔεδομέναΥποψήφιουΠελάτη[Κλείσιμο πρόβλεψης] <>\"\",IF(ΔεδομέναΥποψήφιουΠελάτη[Κλείσιμο πρόβλεψης] = \"Μάρτιος\",ΔεδομέναΥποψήφιουΠελάτη[Σταθμισμένη πρόβλεψη],0),\"\"),\"\")","v":""},{"$f":"IFERROR(IF(ΔεδομέναΥποψήφιουΠελάτη[Κλείσιμο πρόβλεψης] <>\"\",IF(ΔεδομέναΥποψήφιουΠελάτη[Κλείσιμο πρόβλεψης] = \"Απρίλιος\",ΔεδομέναΥποψήφιουΠελάτη[Σταθμισμένη πρόβλεψη],0),\"\"),\"\")","v":""},{"$f":"IFERROR(IF(ΔεδομέναΥποψήφιουΠελάτη[Κλείσιμο πρόβλεψης] <>\"\",IF(ΔεδομέναΥποψήφιουΠελάτη[Κλείσιμο πρόβλεψης] = \"Μάιος\",ΔεδομέναΥποψήφιουΠελάτη[Σταθμισμένη πρόβλεψη],0),\"\"),\"\")","v":""},{"$f":"IFERROR(IF(ΔεδομέναΥποψήφιουΠελάτη[Κλείσιμο πρόβλεψης] <>\"\",IF(ΔεδομέναΥποψήφιουΠελάτη[Κλείσιμο πρόβλεψης] = \"Ιούνιος\",ΔεδομέναΥποψήφιουΠελάτη[Σταθμισμένη πρόβλεψη],0),\"\"),\"\")","v":""},{"$f":"IFERROR(IF(ΔεδομέναΥποψήφιουΠελάτη[Κλείσιμο πρόβλεψης] <>\"\",IF(ΔεδομέναΥποψήφιουΠελάτη[Κλείσιμο πρόβλεψης] = \"Ιούλιος\",ΔεδομέναΥποψήφιουΠελάτη[Σταθμισμένη πρόβλεψη],0),\"\"),\"\")","v":""},{"$f":"IFERROR(IF(ΔεδομέναΥποψήφιουΠελάτη[Κλείσιμο πρόβλεψης] <>\"\",IF(ΔεδομέναΥποψήφιουΠελάτη[Κλείσιμο πρόβλεψης] = \"Αύγουστος\",ΔεδομέναΥποψήφιουΠελάτη[Σταθμισμένη πρόβλεψη],0),\"\"),\"\")","v":""},{"$f":"IFERROR(IF(ΔεδομέναΥποψήφιουΠελάτη[Κλείσιμο πρόβλεψης] <>\"\",IF(ΔεδομέναΥποψήφιουΠελάτη[Κλείσιμο πρόβλεψης] = \"Σεπτέμβριος\",ΔεδομέναΥποψήφιουΠελάτη[Σταθμισμένη πρόβλεψη],0),\"\"),\"\")","v":""},{"$f":"IFERROR(IF(ΔεδομέναΥποψήφιουΠελάτη[Κλείσιμο πρόβλεψης] <>\"\",IF(ΔεδομέναΥποψήφιουΠελάτη[Κλείσιμο πρόβλεψης] = \"Οκτώβριος\",ΔεδομέναΥποψήφιουΠελάτη[Σταθμισμένη πρόβλεψη],0),\"\"),\"\")","v":""},{"$f":"IFERROR(IF(ΔεδομέναΥποψήφιουΠελάτη[Κλείσιμο πρόβλεψης] <>\"\",IF(ΔεδομέναΥποψήφιουΠελάτη[Κλείσιμο πρόβλεψης] = \"Νοέμβριος\",ΔεδομέναΥποψήφιουΠελάτη[Σταθμισμένη πρόβλεψη],0),\"\"),\"\")","v":""},{"$f":"IFERROR(IF(ΔεδομέναΥποψήφιουΠελάτη[Κλείσιμο πρόβλεψης] <>\"\",IF(ΔεδομέναΥποψήφιουΠελάτη[Κλείσιμο πρόβλεψης] = \"Δεκέμβριος\",ΔεδομέναΥποψήφιουΠελάτη[Σταθμισμένη πρόβλεψη],0),\"\"),\"\")","v":""}]
[null,{"$f":"IFERROR(IF(AND(ΔεδομέναΥποψήφιουΠελάτη[Όνομα υποψήφιου πελάτη] <> \"\", ROW(ΠροβλεπόμενεςΠωλήσεις[Όνομα υποψήφιου πελάτη])<>ΤελευταίαΚαταχώρηση),ΔεδομέναΥποψήφιουΠελάτη[Όνομα υποψήφιου πελάτη], \"\"),\"\")","v":""},{"$f":"IFERROR(IF(ΔεδομέναΥποψήφιουΠελάτη[Κλείσιμο πρόβλεψης] <>\"\",IF(ΔεδομέναΥποψήφιουΠελάτη[Κλείσιμο πρόβλεψης]= \"Ιανουάριος\",ΔεδομέναΥποψήφιουΠελάτη[Σταθμισμένη πρόβλεψη],0),\"\"),\"\")","v":""},{"$f":"IFERROR(IF(ΔεδομέναΥποψήφιουΠελάτη[Κλείσιμο πρόβλεψης] <>\"\",IF(ΔεδομέναΥποψήφιουΠελάτη[Κλείσιμο πρόβλεψης] = \"Φεβρουάριος\",ΔεδομέναΥποψήφιουΠελάτη[Σταθμισμένη πρόβλεψη],0),\"\"),\"\")","v":""},{"$f":"IFERROR(IF(ΔεδομέναΥποψήφιουΠελάτη[Κλείσιμο πρόβλεψης] <>\"\",IF(ΔεδομέναΥποψήφιουΠελάτη[Κλείσιμο πρόβλεψης] = \"Μάρτιος\",ΔεδομέναΥποψήφιουΠελάτη[Σταθμισμένη πρόβλεψη],0),\"\"),\"\")","v":""},{"$f":"IFERROR(IF(ΔεδομέναΥποψήφιουΠελάτη[Κλείσιμο πρόβλεψης] <>\"\",IF(ΔεδομέναΥποψήφιουΠελάτη[Κλείσιμο πρόβλεψης] = \"Απρίλιος\",ΔεδομέναΥποψήφιουΠελάτη[Σταθμισμένη πρόβλεψη],0),\"\"),\"\")","v":""},{"$f":"IFERROR(IF(ΔεδομέναΥποψήφιουΠελάτη[Κλείσιμο πρόβλεψης] <>\"\",IF(ΔεδομέναΥποψήφιουΠελάτη[Κλείσιμο πρόβλεψης] = \"Μάιος\",ΔεδομέναΥποψήφιουΠελάτη[Σταθμισμένη πρόβλεψη],0),\"\"),\"\")","v":""},{"$f":"IFERROR(IF(ΔεδομέναΥποψήφιουΠελάτη[Κλείσιμο πρόβλεψης] <>\"\",IF(ΔεδομέναΥποψήφιουΠελάτη[Κλείσιμο πρόβλεψης] = \"Ιούνιος\",ΔεδομέναΥποψήφιουΠελάτη[Σταθμισμένη πρόβλεψη],0),\"\"),\"\")","v":""},{"$f":"IFERROR(IF(ΔεδομέναΥποψήφιουΠελάτη[Κλείσιμο πρόβλεψης] <>\"\",IF(ΔεδομέναΥποψήφιουΠελάτη[Κλείσιμο πρόβλεψης] = \"Ιούλιος\",ΔεδομέναΥποψήφιουΠελάτη[Σταθμισμένη πρόβλεψη],0),\"\"),\"\")","v":""},{"$f":"IFERROR(IF(ΔεδομέναΥποψήφιουΠελάτη[Κλείσιμο πρόβλεψης] <>\"\",IF(ΔεδομέναΥποψήφιουΠελάτη[Κλείσιμο πρόβλεψης] = \"Αύγουστος\",ΔεδομέναΥποψήφιουΠελάτη[Σταθμισμένη πρόβλεψη],0),\"\"),\"\")","v":""},{"$f":"IFERROR(IF(ΔεδομέναΥποψήφιουΠελάτη[Κλείσιμο πρόβλεψης] <>\"\",IF(ΔεδομέναΥποψήφιουΠελάτη[Κλείσιμο πρόβλεψης] = \"Σεπτέμβριος\",ΔεδομέναΥποψήφιουΠελάτη[Σταθμισμένη πρόβλεψη],0),\"\"),\"\")","v":""},{"$f":"IFERROR(IF(ΔεδομέναΥποψήφιουΠελάτη[Κλείσιμο πρόβλεψης] <>\"\",IF(ΔεδομέναΥποψήφιουΠελάτη[Κλείσιμο πρόβλεψης] = \"Οκτώβριος\",ΔεδομέναΥποψήφιουΠελάτη[Σταθμισμένη πρόβλεψη],0),\"\"),\"\")","v":""},{"$f":"IFERROR(IF(ΔεδομέναΥποψήφιουΠελάτη[Κλείσιμο πρόβλεψης] <>\"\",IF(ΔεδομέναΥποψήφιουΠελάτη[Κλείσιμο πρόβλεψης] = \"Νοέμβριος\",ΔεδομέναΥποψήφιουΠελάτη[Σταθμισμένη πρόβλεψη],0),\"\"),\"\")","v":""},{"$f":"IFERROR(IF(ΔεδομέναΥποψήφιουΠελάτη[Κλείσιμο πρόβλεψης] <>\"\",IF(ΔεδομέναΥποψήφιουΠελάτη[Κλείσιμο πρόβλεψης] = \"Δεκέμβριος\",ΔεδομέναΥποψήφιουΠελάτη[Σταθμισμένη πρόβλεψη],0),\"\"),\"\")","v":""}]
[null,{"$f":"IFERROR(IF(AND(ΔεδομέναΥποψήφιουΠελάτη[Όνομα υποψήφιου πελάτη] <> \"\", ROW(ΠροβλεπόμενεςΠωλήσεις[Όνομα υποψήφιου πελάτη])<>ΤελευταίαΚαταχώρηση),ΔεδομέναΥποψήφιουΠελάτη[Όνομα υποψήφιου πελάτη], \"\"),\"\")","v":""},{"$f":"IFERROR(IF(ΔεδομέναΥποψήφιουΠελάτη[Κλείσιμο πρόβλεψης] <>\"\",IF(ΔεδομέναΥποψήφιουΠελάτη[Κλείσιμο πρόβλεψης]= \"Ιανουάριος\",ΔεδομέναΥποψήφιουΠελάτη[Σταθμισμένη πρόβλεψη],0),\"\"),\"\")","v":""},{"$f":"IFERROR(IF(ΔεδομέναΥποψήφιουΠελάτη[Κλείσιμο πρόβλεψης] <>\"\",IF(ΔεδομέναΥποψήφιουΠελάτη[Κλείσιμο πρόβλεψης] = \"Φεβρουάριος\",ΔεδομέναΥποψήφιουΠελάτη[Σταθμισμένη πρόβλεψη],0),\"\"),\"\")","v":""},{"$f":"IFERROR(IF(ΔεδομέναΥποψήφιουΠελάτη[Κλείσιμο πρόβλεψης] <>\"\",IF(ΔεδομέναΥποψήφιουΠελάτη[Κλείσιμο πρόβλεψης] = \"Μάρτιος\",ΔεδομέναΥποψήφιουΠελάτη[Σταθμισμένη πρόβλεψη],0),\"\"),\"\")","v":""},{"$f":"IFERROR(IF(ΔεδομέναΥποψήφιουΠελάτη[Κλείσιμο πρόβλεψης] <>\"\",IF(ΔεδομέναΥποψήφιουΠελάτη[Κλείσιμο πρόβλεψης] = \"Απρίλιος\",ΔεδομέναΥποψήφιουΠελάτη[Σταθμισμένη πρόβλεψη],0),\"\"),\"\")","v":""},{"$f":"IFERROR(IF(ΔεδομέναΥποψήφιουΠελάτη[Κλείσιμο πρόβλεψης] <>\"\",IF(ΔεδομέναΥποψήφιουΠελάτη[Κλείσιμο πρόβλεψης] = \"Μάιος\",ΔεδομέναΥποψήφιουΠελάτη[Σταθμισμένη πρόβλεψη],0),\"\"),\"\")","v":""},{"$f":"IFERROR(IF(ΔεδομέναΥποψήφιουΠελάτη[Κλείσιμο πρόβλεψης] <>\"\",IF(ΔεδομέναΥποψήφιουΠελάτη[Κλείσιμο πρόβλεψης] = \"Ιούνιος\",ΔεδομέναΥποψήφιουΠελάτη[Σταθμισμένη πρόβλεψη],0),\"\"),\"\")","v":""},{"$f":"IFERROR(IF(ΔεδομέναΥποψήφιουΠελάτη[Κλείσιμο πρόβλεψης] <>\"\",IF(ΔεδομέναΥποψήφιουΠελάτη[Κλείσιμο πρόβλεψης] = \"Ιούλιος\",ΔεδομέναΥποψήφιουΠελάτη[Σταθμισμένη πρόβλεψη],0),\"\"),\"\")","v":""},{"$f":"IFERROR(IF(ΔεδομέναΥποψήφιουΠελάτη[Κλείσιμο πρόβλεψης] <>\"\",IF(ΔεδομέναΥποψήφιουΠελάτη[Κλείσιμο πρόβλεψης] = \"Αύγουστος\",ΔεδομέναΥποψήφιουΠελάτη[Σταθμισμένη πρόβλεψη],0),\"\"),\"\")","v":""},{"$f":"IFERROR(IF(ΔεδομέναΥποψήφιουΠελάτη[Κλείσιμο πρόβλεψης] <>\"\",IF(ΔεδομέναΥποψήφιουΠελάτη[Κλείσιμο πρόβλεψης] = \"Σεπτέμβριος\",ΔεδομέναΥποψήφιουΠελάτη[Σταθμισμένη πρόβλεψη],0),\"\"),\"\")","v":""},{"$f":"IFERROR(IF(ΔεδομέναΥποψήφιουΠελάτη[Κλείσιμο πρόβλεψης] <>\"\",IF(ΔεδομέναΥποψήφιουΠελάτη[Κλείσιμο πρόβλεψης] = \"Οκτώβριος\",ΔεδομέναΥποψήφιουΠελάτη[Σταθμισμένη πρόβλεψη],0),\"\"),\"\")","v":""},{"$f":"IFERROR(IF(ΔεδομέναΥποψήφιουΠελάτη[Κλείσιμο πρόβλεψης] <>\"\",IF(ΔεδομέναΥποψήφιουΠελάτη[Κλείσιμο πρόβλεψης] = \"Νοέμβριος\",ΔεδομέναΥποψήφιουΠελάτη[Σταθμισμένη πρόβλεψη],0),\"\"),\"\")","v":""},{"$f":"IFERROR(IF(ΔεδομέναΥποψήφιουΠελάτη[Κλείσιμο πρόβλεψης] <>\"\",IF(ΔεδομέναΥποψήφιουΠελάτη[Κλείσιμο πρόβλεψης] = \"Δεκέμβριος\",ΔεδομέναΥποψήφιουΠελάτη[Σταθμισμένη πρόβλεψη],0),\"\"),\"\")","v":""}]
[null,{"$f":"IFERROR(IF(AND(ΔεδομέναΥποψήφιουΠελάτη[Όνομα υποψήφιου πελάτη] <> \"\", ROW(ΠροβλεπόμενεςΠωλήσεις[Όνομα υποψήφιου πελάτη])<>ΤελευταίαΚαταχώρηση),ΔεδομέναΥποψήφιουΠελάτη[Όνομα υποψήφιου πελάτη], \"\"),\"\")","v":""},{"$f":"IFERROR(IF(ΔεδομέναΥποψήφιουΠελάτη[Κλείσιμο πρόβλεψης] <>\"\",IF(ΔεδομέναΥποψήφιουΠελάτη[Κλείσιμο πρόβλεψης]= \"Ιανουάριος\",ΔεδομέναΥποψήφιουΠελάτη[Σταθμισμένη πρόβλεψη],0),\"\"),\"\")","v":""},{"$f":"IFERROR(IF(ΔεδομέναΥποψήφιουΠελάτη[Κλείσιμο πρόβλεψης] <>\"\",IF(ΔεδομέναΥποψήφιουΠελάτη[Κλείσιμο πρόβλεψης] = \"Φεβρουάριος\",ΔεδομέναΥποψήφιουΠελάτη[Σταθμισμένη πρόβλεψη],0),\"\"),\"\")","v":""},{"$f":"IFERROR(IF(ΔεδομέναΥποψήφιουΠελάτη[Κλείσιμο πρόβλεψης] <>\"\",IF(ΔεδομέναΥποψήφιουΠελάτη[Κλείσιμο πρόβλεψης] = \"Μάρτιος\",ΔεδομέναΥποψήφιουΠελάτη[Σταθμισμένη πρόβλεψη],0),\"\"),\"\")","v":""},{"$f":"IFERROR(IF(ΔεδομέναΥποψήφιουΠελάτη[Κλείσιμο πρόβλεψης] <>\"\",IF(ΔεδομέναΥποψήφιουΠελάτη[Κλείσιμο πρόβλεψης] = \"Απρίλιος\",ΔεδομέναΥποψήφιουΠελάτη[Σταθμισμένη πρόβλεψη],0),\"\"),\"\")","v":""},{"$f":"IFERROR(IF(ΔεδομέναΥποψήφιουΠελάτη[Κλείσιμο πρόβλεψης] <>\"\",IF(ΔεδομέναΥποψήφιουΠελάτη[Κλείσιμο πρόβλεψης] = \"Μάιος\",ΔεδομέναΥποψήφιουΠελάτη[Σταθμισμένη πρόβλεψη],0),\"\"),\"\")","v":""},{"$f":"IFERROR(IF(ΔεδομέναΥποψήφιουΠελάτη[Κλείσιμο πρόβλεψης] <>\"\",IF(ΔεδομέναΥποψήφιουΠελάτη[Κλείσιμο πρόβλεψης] = \"Ιούνιος\",ΔεδομέναΥποψήφιουΠελάτη[Σταθμισμένη πρόβλεψη],0),\"\"),\"\")","v":""},{"$f":"IFERROR(IF(ΔεδομέναΥποψήφιουΠελάτη[Κλείσιμο πρόβλεψης] <>\"\",IF(ΔεδομέναΥποψήφιουΠελάτη[Κλείσιμο πρόβλεψης] = \"Ιούλιος\",ΔεδομέναΥποψήφιουΠελάτη[Σταθμισμένη πρόβλεψη],0),\"\"),\"\")","v":""},{"$f":"IFERROR(IF(ΔεδομέναΥποψήφιουΠελάτη[Κλείσιμο πρόβλεψης] <>\"\",IF(ΔεδομέναΥποψήφιουΠελάτη[Κλείσιμο πρόβλεψης] = \"Αύγουστος\",ΔεδομέναΥποψήφιουΠελάτη[Σταθμισμένη πρόβλεψη],0),\"\"),\"\")","v":""},{"$f":"IFERROR(IF(ΔεδομέναΥποψήφιουΠελάτη[Κλείσιμο πρόβλεψης] <>\"\",IF(ΔεδομέναΥποψήφιουΠελάτη[Κλείσιμο πρόβλεψης] = \"Σεπτέμβριος\",ΔεδομέναΥποψήφιουΠελάτη[Σταθμισμένη πρόβλεψη],0),\"\"),\"\")","v":""},{"$f":"IFERROR(IF(ΔεδομέναΥποψήφιουΠελάτη[Κλείσιμο πρόβλεψης] <>\"\",IF(ΔεδομέναΥποψήφιουΠελάτη[Κλείσιμο πρόβλεψης] = \"Οκτώβριος\",ΔεδομέναΥποψήφιουΠελάτη[Σταθμισμένη πρόβλεψη],0),\"\"),\"\")","v":""},{"$f":"IFERROR(IF(ΔεδομέναΥποψήφιουΠελάτη[Κλείσιμο πρόβλεψης] <>\"\",IF(ΔεδομέναΥποψήφιουΠελάτη[Κλείσιμο πρόβλεψης] = \"Νοέμβριος\",ΔεδομέναΥποψήφιουΠελάτη[Σταθμισμένη πρόβλεψη],0),\"\"),\"\")","v":""},{"$f":"IFERROR(IF(ΔεδομέναΥποψήφιουΠελάτη[Κλείσιμο πρόβλεψης] <>\"\",IF(ΔεδομέναΥποψήφιουΠελάτη[Κλείσιμο πρόβλεψης] = \"Δεκέμβριος\",ΔεδομέναΥποψήφιουΠελάτη[Σταθμισμένη πρόβλεψη],0),\"\"),\"\")","v":""}]
[null,{"$f":"IFERROR(IF(AND(ΔεδομέναΥποψήφιουΠελάτη[Όνομα υποψήφιου πελάτη] <> \"\", ROW(ΠροβλεπόμενεςΠωλήσεις[Όνομα υποψήφιου πελάτη])<>ΤελευταίαΚαταχώρηση),ΔεδομέναΥποψήφιουΠελάτη[Όνομα υποψήφιου πελάτη], \"\"),\"\")","v":""},{"$f":"IFERROR(IF(ΔεδομέναΥποψήφιουΠελάτη[Κλείσιμο πρόβλεψης] <>\"\",IF(ΔεδομέναΥποψήφιουΠελάτη[Κλείσιμο πρόβλεψης]= \"Ιανουάριος\",ΔεδομέναΥποψήφιουΠελάτη[Σταθμισμένη πρόβλεψη],0),\"\"),\"\")","v":""},{"$f":"IFERROR(IF(ΔεδομέναΥποψήφιουΠελάτη[Κλείσιμο πρόβλεψης] <>\"\",IF(ΔεδομέναΥποψήφιουΠελάτη[Κλείσιμο πρόβλεψης] = \"Φεβρουάριος\",ΔεδομέναΥποψήφιουΠελάτη[Σταθμισμένη πρόβλεψη],0),\"\"),\"\")","v":""},{"$f":"IFERROR(IF(ΔεδομέναΥποψήφιουΠελάτη[Κλείσιμο πρόβλεψης] <>\"\",IF(ΔεδομέναΥποψήφιουΠελάτη[Κλείσιμο πρόβλεψης] = \"Μάρτιος\",ΔεδομέναΥποψήφιουΠελάτη[Σταθμισμένη πρόβλεψη],0),\"\"),\"\")","v":""},{"$f":"IFERROR(IF(ΔεδομέναΥποψήφιουΠελάτη[Κλείσιμο πρόβλεψης] <>\"\",IF(ΔεδομέναΥποψήφιουΠελάτη[Κλείσιμο πρόβλεψης] = \"Απρίλιος\",ΔεδομέναΥποψήφιουΠελάτη[Σταθμισμένη πρόβλεψη],0),\"\"),\"\")","v":""},{"$f":"IFERROR(IF(ΔεδομέναΥποψήφιουΠελάτη[Κλείσιμο πρόβλεψης] <>\"\",IF(ΔεδομέναΥποψήφιουΠελάτη[Κλείσιμο πρόβλεψης] = \"Μάιος\",ΔεδομέναΥποψήφιουΠελάτη[Σταθμισμένη πρόβλεψη],0),\"\"),\"\")","v":""},{"$f":"IFERROR(IF(ΔεδομέναΥποψήφιουΠελάτη[Κλείσιμο πρόβλεψης] <>\"\",IF(ΔεδομέναΥποψήφιουΠελάτη[Κλείσιμο πρόβλεψης] = \"Ιούνιος\",ΔεδομέναΥποψήφιουΠελάτη[Σταθμισμένη πρόβλεψη],0),\"\"),\"\")","v":""},{"$f":"IFERROR(IF(ΔεδομέναΥποψήφιουΠελάτη[Κλείσιμο πρόβλεψης] <>\"\",IF(ΔεδομέναΥποψήφιουΠελάτη[Κλείσιμο πρόβλεψης] = \"Ιούλιος\",ΔεδομέναΥποψήφιουΠελάτη[Σταθμισμένη πρόβλεψη],0),\"\"),\"\")","v":""},{"$f":"IFERROR(IF(ΔεδομέναΥποψήφιουΠελάτη[Κλείσιμο πρόβλεψης] <>\"\",IF(ΔεδομέναΥποψήφιουΠελάτη[Κλείσιμο πρόβλεψης] = \"Αύγουστος\",ΔεδομέναΥποψήφιουΠελάτη[Σταθμισμένη πρόβλεψη],0),\"\"),\"\")","v":""},{"$f":"IFERROR(IF(ΔεδομέναΥποψήφιουΠελάτη[Κλείσιμο πρόβλεψης] <>\"\",IF(ΔεδομέναΥποψήφιουΠελάτη[Κλείσιμο πρόβλεψης] = \"Σεπτέμβριος\",ΔεδομέναΥποψήφιουΠελάτη[Σταθμισμένη πρόβλεψη],0),\"\"),\"\")","v":""},{"$f":"IFERROR(IF(ΔεδομέναΥποψήφιουΠελάτη[Κλείσιμο πρόβλεψης] <>\"\",IF(ΔεδομέναΥποψήφιουΠελάτη[Κλείσιμο πρόβλεψης] = \"Οκτώβριος\",ΔεδομέναΥποψήφιουΠελάτη[Σταθμισμένη πρόβλεψη],0),\"\"),\"\")","v":""},{"$f":"IFERROR(IF(ΔεδομέναΥποψήφιουΠελάτη[Κλείσιμο πρόβλεψης] <>\"\",IF(ΔεδομέναΥποψήφιουΠελάτη[Κλείσιμο πρόβλεψης] = \"Νοέμβριος\",ΔεδομέναΥποψήφιουΠελάτη[Σταθμισμένη πρόβλεψη],0),\"\"),\"\")","v":""},{"$f":"IFERROR(IF(ΔεδομέναΥποψήφιουΠελάτη[Κλείσιμο πρόβλεψης] <>\"\",IF(ΔεδομέναΥποψήφιουΠελάτη[Κλείσιμο πρόβλεψης] = \"Δεκέμβριος\",ΔεδομέναΥποψήφιουΠελάτη[Σταθμισμένη πρόβλεψη],0),\"\"),\"\")","v":""}]
[null,{"$f":"IFERROR(IF(AND(ΔεδομέναΥποψήφιουΠελάτη[Όνομα υποψήφιου πελάτη] <> \"\", ROW(ΠροβλεπόμενεςΠωλήσεις[Όνομα υποψήφιου πελάτη])<>ΤελευταίαΚαταχώρηση),ΔεδομέναΥποψήφιουΠελάτη[Όνομα υποψήφιου πελάτη], \"\"),\"\")","v":""},{"$f":"IFERROR(IF(ΔεδομέναΥποψήφιουΠελάτη[Κλείσιμο πρόβλεψης] <>\"\",IF(ΔεδομέναΥποψήφιουΠελάτη[Κλείσιμο πρόβλεψης]= \"Ιανουάριος\",ΔεδομέναΥποψήφιουΠελάτη[Σταθμισμένη πρόβλεψη],0),\"\"),\"\")","v":""},{"$f":"IFERROR(IF(ΔεδομέναΥποψήφιουΠελάτη[Κλείσιμο πρόβλεψης] <>\"\",IF(ΔεδομέναΥποψήφιουΠελάτη[Κλείσιμο πρόβλεψης] = \"Φεβρουάριος\",ΔεδομέναΥποψήφιουΠελάτη[Σταθμισμένη πρόβλεψη],0),\"\"),\"\")","v":""},{"$f":"IFERROR(IF(ΔεδομέναΥποψήφιουΠελάτη[Κλείσιμο πρόβλεψης] <>\"\",IF(ΔεδομέναΥποψήφιουΠελάτη[Κλείσιμο πρόβλεψης] = \"Μάρτιος\",ΔεδομέναΥποψήφιουΠελάτη[Σταθμισμένη πρόβλεψη],0),\"\"),\"\")","v":""},{"$f":"IFERROR(IF(ΔεδομέναΥποψήφιουΠελάτη[Κλείσιμο πρόβλεψης] <>\"\",IF(ΔεδομέναΥποψήφιουΠελάτη[Κλείσιμο πρόβλεψης] = \"Απρίλιος\",ΔεδομέναΥποψήφιουΠελάτη[Σταθμισμένη πρόβλεψη],0),\"\"),\"\")","v":""},{"$f":"IFERROR(IF(ΔεδομέναΥποψήφιουΠελάτη[Κλείσιμο πρόβλεψης] <>\"\",IF(ΔεδομέναΥποψήφιουΠελάτη[Κλείσιμο πρόβλεψης] = \"Μάιος\",ΔεδομέναΥποψήφιουΠελάτη[Σταθμισμένη πρόβλεψη],0),\"\"),\"\")","v":""},{"$f":"IFERROR(IF(ΔεδομέναΥποψήφιουΠελάτη[Κλείσιμο πρόβλεψης] <>\"\",IF(ΔεδομέναΥποψήφιουΠελάτη[Κλείσιμο πρόβλεψης] = \"Ιούνιος\",ΔεδομέναΥποψήφιουΠελάτη[Σταθμισμένη πρόβλεψη],0),\"\"),\"\")","v":""},{"$f":"IFERROR(IF(ΔεδομέναΥποψήφιουΠελάτη[Κλείσιμο πρόβλεψης] <>\"\",IF(ΔεδομέναΥποψήφιουΠελάτη[Κλείσιμο πρόβλεψης] = \"Ιούλιος\",ΔεδομέναΥποψήφιουΠελάτη[Σταθμισμένη πρόβλεψη],0),\"\"),\"\")","v":""},{"$f":"IFERROR(IF(ΔεδομέναΥποψήφιουΠελάτη[Κλείσιμο πρόβλεψης] <>\"\",IF(ΔεδομέναΥποψήφιουΠελάτη[Κλείσιμο πρόβλεψης] = \"Αύγουστος\",ΔεδομέναΥποψήφιουΠελάτη[Σταθμισμένη πρόβλεψη],0),\"\"),\"\")","v":""},{"$f":"IFERROR(IF(ΔεδομέναΥποψήφιουΠελάτη[Κλείσιμο πρόβλεψης] <>\"\",IF(ΔεδομέναΥποψήφιουΠελάτη[Κλείσιμο πρόβλεψης] = \"Σεπτέμβριος\",ΔεδομέναΥποψήφιουΠελάτη[Σταθμισμένη πρόβλεψη],0),\"\"),\"\")","v":""},{"$f":"IFERROR(IF(ΔεδομέναΥποψήφιουΠελάτη[Κλείσιμο πρόβλεψης] <>\"\",IF(ΔεδομέναΥποψήφιουΠελάτη[Κλείσιμο πρόβλεψης] = \"Οκτώβριος\",ΔεδομέναΥποψήφιουΠελάτη[Σταθμισμένη πρόβλεψη],0),\"\"),\"\")","v":""},{"$f":"IFERROR(IF(ΔεδομέναΥποψήφιουΠελάτη[Κλείσιμο πρόβλεψης] <>\"\",IF(ΔεδομέναΥποψήφιουΠελάτη[Κλείσιμο πρόβλεψης] = \"Νοέμβριος\",ΔεδομέναΥποψήφιουΠελάτη[Σταθμισμένη πρόβλεψη],0),\"\"),\"\")","v":""},{"$f":"IFERROR(IF(ΔεδομέναΥποψήφιουΠελάτη[Κλείσιμο πρόβλεψης] <>\"\",IF(ΔεδομέναΥποψήφιουΠελάτη[Κλείσιμο πρόβλεψης] = \"Δεκέμβριος\",ΔεδομέναΥποψήφιουΠελάτη[Σταθμισμένη πρόβλεψη],0),\"\"),\"\")","v":""}]
[null,{"$f":"IFERROR(IF(AND(ΔεδομέναΥποψήφιουΠελάτη[Όνομα υποψήφιου πελάτη] <> \"\", ROW(ΠροβλεπόμενεςΠωλήσεις[Όνομα υποψήφιου πελάτη])<>ΤελευταίαΚαταχώρηση),ΔεδομέναΥποψήφιουΠελάτη[Όνομα υποψήφιου πελάτη], \"\"),\"\")","v":""},{"$f":"IFERROR(IF(ΔεδομέναΥποψήφιουΠελάτη[Κλείσιμο πρόβλεψης] <>\"\",IF(ΔεδομέναΥποψήφιουΠελάτη[Κλείσιμο πρόβλεψης]= \"Ιανουάριος\",ΔεδομέναΥποψήφιουΠελάτη[Σταθμισμένη πρόβλεψη],0),\"\"),\"\")","v":""},{"$f":"IFERROR(IF(ΔεδομέναΥποψήφιουΠελάτη[Κλείσιμο πρόβλεψης] <>\"\",IF(ΔεδομέναΥποψήφιουΠελάτη[Κλείσιμο πρόβλεψης] = \"Φεβρουάριος\",ΔεδομέναΥποψήφιουΠελάτη[Σταθμισμένη πρόβλεψη],0),\"\"),\"\")","v":""},{"$f":"IFERROR(IF(ΔεδομέναΥποψήφιουΠελάτη[Κλείσιμο πρόβλεψης] <>\"\",IF(ΔεδομέναΥποψήφιουΠελάτη[Κλείσιμο πρόβλεψης] = \"Μάρτιος\",ΔεδομέναΥποψήφιουΠελάτη[Σταθμισμένη πρόβλεψη],0),\"\"),\"\")","v":""},{"$f":"IFERROR(IF(ΔεδομέναΥποψήφιουΠελάτη[Κλείσιμο πρόβλεψης] <>\"\",IF(ΔεδομέναΥποψήφιουΠελάτη[Κλείσιμο πρόβλεψης] = \"Απρίλιος\",ΔεδομέναΥποψήφιουΠελάτη[Σταθμισμένη πρόβλεψη],0),\"\"),\"\")","v":""},{"$f":"IFERROR(IF(ΔεδομέναΥποψήφιουΠελάτη[Κλείσιμο πρόβλεψης] <>\"\",IF(ΔεδομέναΥποψήφιουΠελάτη[Κλείσιμο πρόβλεψης] = \"Μάιος\",ΔεδομέναΥποψήφιουΠελάτη[Σταθμισμένη πρόβλεψη],0),\"\"),\"\")","v":""},{"$f":"IFERROR(IF(ΔεδομέναΥποψήφιουΠελάτη[Κλείσιμο πρόβλεψης] <>\"\",IF(ΔεδομέναΥποψήφιουΠελάτη[Κλείσιμο πρόβλεψης] = \"Ιούνιος\",ΔεδομέναΥποψήφιουΠελάτη[Σταθμισμένη πρόβλεψη],0),\"\"),\"\")","v":""},{"$f":"IFERROR(IF(ΔεδομέναΥποψήφιουΠελάτη[Κλείσιμο πρόβλεψης] <>\"\",IF(ΔεδομέναΥποψήφιουΠελάτη[Κλείσιμο πρόβλεψης] = \"Ιούλιος\",ΔεδομέναΥποψήφιουΠελάτη[Σταθμισμένη πρόβλεψη],0),\"\"),\"\")","v":""},{"$f":"IFERROR(IF(ΔεδομέναΥποψήφιουΠελάτη[Κλείσιμο πρόβλεψης] <>\"\",IF(ΔεδομέναΥποψήφιουΠελάτη[Κλείσιμο πρόβλεψης] = \"Αύγουστος\",ΔεδομέναΥποψήφιουΠελάτη[Σταθμισμένη πρόβλεψη],0),\"\"),\"\")","v":""},{"$f":"IFERROR(IF(ΔεδομέναΥποψήφιουΠελάτη[Κλείσιμο πρόβλεψης] <>\"\",IF(ΔεδομέναΥποψήφιουΠελάτη[Κλείσιμο πρόβλεψης] = \"Σεπτέμβριος\",ΔεδομέναΥποψήφιουΠελάτη[Σταθμισμένη πρόβλεψη],0),\"\"),\"\")","v":""},{"$f":"IFERROR(IF(ΔεδομέναΥποψήφιουΠελάτη[Κλείσιμο πρόβλεψης] <>\"\",IF(ΔεδομέναΥποψήφιουΠελάτη[Κλείσιμο πρόβλεψης] = \"Οκτώβριος\",ΔεδομέναΥποψήφιουΠελάτη[Σταθμισμένη πρόβλεψη],0),\"\"),\"\")","v":""},{"$f":"IFERROR(IF(ΔεδομέναΥποψήφιουΠελάτη[Κλείσιμο πρόβλεψης] <>\"\",IF(ΔεδομέναΥποψήφιουΠελάτη[Κλείσιμο πρόβλεψης] = \"Νοέμβριος\",ΔεδομέναΥποψήφιουΠελάτη[Σταθμισμένη πρόβλεψη],0),\"\"),\"\")","v":""},{"$f":"IFERROR(IF(ΔεδομέναΥποψήφιουΠελάτη[Κλείσιμο πρόβλεψης] <>\"\",IF(ΔεδομέναΥποψήφιουΠελάτη[Κλείσιμο πρόβλεψης] = \"Δεκέμβριος\",ΔεδομέναΥποψήφιουΠελάτη[Σταθμισμένη πρόβλεψη],0),\"\"),\"\")","v":""}]
[null,"Σύνολο",{"$f":"SUBTOTAL(109,ΠροβλεπόμενεςΠωλήσεις[Πρόβλεψη Ιανουαρίου])","v":{"v":270000,"d":"270,000 €"}},{"$f":"SUBTOTAL(109,ΠροβλεπόμενεςΠωλήσεις[Πρόβλεψη Φεβρουαρίου])","v":{"v":20000,"d":"20,000 €"}},{"$f":"SUBTOTAL(109,ΠροβλεπόμενεςΠωλήσεις[Πρόβλεψη Μαρτίου])","v":{"v":20000,"d":"20,000 €"}},{"$f":"SUBTOTAL(109,ΠροβλεπόμενεςΠωλήσεις[Πρόβλεψη Απριλίου])","v":{"v":0,"d":"0 €"}},{"$f":"SUBTOTAL(109,ΠροβλεπόμενεςΠωλήσεις[Πρόβλεψη Μαΐου])","v":{"v":0,"d":"0 €"}},{"$f":"SUBTOTAL(109,ΠροβλεπόμενεςΠωλήσεις[Πρόβλεψη Ιουνίου])","v":{"v":0,"d":"0 €"}},{"$f":"SUBTOTAL(109,ΠροβλεπόμενεςΠωλήσεις[Πρόβλεψη Ιούλιου])","v":{"v":0,"d":"0 €"}},{"$f":"SUBTOTAL(109,ΠροβλεπόμενεςΠωλήσεις[Πρόβλεψη Αυγούστου])","v":{"v":0,"d":"0 €"}},{"$f":"SUBTOTAL(109,ΠροβλεπόμενεςΠωλήσεις[Πρόβλεψη Σεπτεμβρίου])","v":{"v":0,"d":"0 €"}},{"$f":"SUBTOTAL(109,ΠροβλεπόμενεςΠωλήσεις[Πρόβλεψη Οκτωβρίου])","v":{"v":0,"d":"0 €"}},{"$f":"SUBTOTAL(109,ΠροβλεπόμενεςΠωλήσεις[Πρόβλεψη Νοεμβρίου])","v":{"v":0,"d":"0 €"}},{"$f":"SUBTOTAL(109,ΠροβλεπόμενεςΠωλήσεις[Πρόβλεψη Δεκεμβρίου])","v":{"v":0,"d":"0 €"}}]
[null,"ΣΩΡΕΥΤΙΚΟ ΣΥΝΟΛΟ",{"$f":"C20","v":{"v":270000,"d":"270,000 €"}},{"$f":"C21+D20","v":{"v":290000,"d":"290,000 €"}},{"$f":"D21+E20","v":{"v":310000,"d":"310,000 €"}},{"$f":"E21+F20","v":{"v":310000,"d":"310,000 €"}},{"$f":"F21+G20","v":{"v":310000,"d":"310,000 €"}},{"$f":"G21+H20","v":{"v":310000,"d":"310,000 €"}},{"$f":"H21+I20","v":{"v":310000,"d":"310,000 €"}},{"$f":"I21+J20","v":{"v":310000,"d":"310,000 €"}},{"$f":"J21+K20","v":{"v":310000,"d":"310,000 €"}},{"$f":"K21+L20","v":{"v":310000,"d":"310,000 €"}},{"$f":"L21+M20","v":{"v":310000,"d":"310,000 €"}},{"$f":"M21+N20","v":{"v":310000,"d":"310,000 €"}}]

{"sheet":"Μηνιαία σταθμισμένη πρόβλεψη","index":2,"n_rows":3,"n_cols":2,"rows_kept":3}
[null,{"$f":"Επωνυμία_Εταιρείας","v":"Επωνυμία εταιρείας"}]
[null,"Μηνιαία σταθμισμένη πρόβλεψη"]
[null," "]